[Event "Titled Tuesday Blitz July 25 Early 2023"]
[White "Tobak, Mikhail"]
[Black "ivana_999"]
[WhiteFideId "14165570"]
[WhiteElo "2403"]
[BlackElo "2071"]
[Result "1-0"]
[Round "8"]
[TimeControl "180+2"]
[Date "2023.07.25"]
[WhiteClock "0:01:22"]
[BlackClock "0:00:14"]
[Board "164"]

1. e4 {[%clk 0:03:00]}  e6 {[%clk 0:02:59]} 2. d3 {[%clk 0:02:59]}  d5 {[%clk 0:03:00]} 3. Nd2 {[%clk 0:02:59]}  c5 {[%clk 0:03:00]} 4. Ngf3 {[%clk 0:02:59]}  Nf6 {[%clk 0:02:59]} 5. g3 {[%clk 0:03:00]}  Nc6 {[%clk 0:02:57]} 6. Bg2 {[%clk 0:03:01]}  Be7 {[%clk 0:02:57]} 7. O-O {[%clk 0:03:01]}  b6 {[%clk 0:02:58]} 8. Re1 {[%clk 0:03:00]}  Bb7 {[%clk 0:02:58]} 9. c3 {[%clk 0:02:57]}  Qc7 {[%clk 0:02:57]} 10. Qe2 {[%clk 0:02:55]}  O-O-O {[%clk 0:02:52]} 11. a3 {[%clk 0:02:54]}  h5 {[%clk 0:02:38]} 12. b4 {[%clk 0:02:51]}  Rdg8 {[%clk 0:02:35]} 13. bxc5 {[%clk 0:02:51]}  Bxc5 {[%clk 0:02:30]} 14. d4 {[%clk 0:02:50]}  Be7 {[%clk 0:02:30]} 15. exd5 {[%clk 0:02:49]}  exd5 {[%clk 0:02:22]} 16. c4 {[%clk 0:02:49]}  Re8 {[%clk 0:02:17]} 17. cxd5 {[%clk 0:02:39]}  Nxd5 {[%clk 0:02:11]} 18. Nc4 {[%clk 0:02:13]}  Bb4 {[%clk 0:01:53]} 19. Qxe8+ {[%clk 0:02:11]}  Rxe8 {[%clk 0:01:54]} 20. Rxe8+ {[%clk 0:02:11]}  Kd7 {[%clk 0:01:53]} 21. Re2 {[%clk 0:02:01]}  Bc3 {[%clk 0:01:41]} 22. Nce5+ {[%clk 0:01:55]}  Nxe5 {[%clk 0:01:33]} 23. Nxe5+ {[%clk 0:01:55]}  Kd8 {[%clk 0:01:28]} 24. Rb1 {[%clk 0:01:43]}  Bxd4 {[%clk 0:01:13]} 25. Bb2 {[%clk 0:01:34]}  Bxb2 {[%clk 0:01:06]} 26. Rexb2 {[%clk 0:01:32]}  Nc3 {[%clk 0:00:50]} 27. Rd2+ {[%clk 0:01:30]}  Ke7 {[%clk 0:00:42]} 28. Re1 {[%clk 0:01:29]}  Be4 {[%clk 0:00:13]} 29. Rd7+ {[%clk 0:01:16]}  Qxd7 {[%clk 0:00:11]} 30. Nxd7 {[%clk 0:01:17]}  Kxd7 {[%clk 0:00:09]} 31. Bxe4 {[%clk 0:01:17]}  Nxe4 {[%clk 0:00:10]} 32. Rxe4 {[%clk 0:01:16]}  a5 {[%clk 0:00:09]} 33. a4 {[%clk 0:01:16]}  f6 {[%clk 0:00:07]} 34. Re1 {[%clk 0:01:13]}  Kc6 {[%clk 0:00:07]} 35. Rb1 {[%clk 0:01:14]}  Kc5 {[%clk 0:00:07]} 36. Rb5+ {[%clk 0:01:15]}  Kc6 {[%clk 0:00:07]} 37. Rxh5 {[%clk 0:01:15]}  g6 {[%clk 0:00:08]} 38. Rb5 {[%clk 0:01:15]}  f5 {[%clk 0:00:07]} 39. f4 {[%clk 0:01:15]}  Kb7 {[%clk 0:00:07]} 40. Kf2 {[%clk 0:01:16]}  Ka6 {[%clk 0:00:08]} 41. Kf3 {[%clk 0:01:16]}  Kb7 {[%clk 0:00:08]} 42. g4 {[%clk 0:01:17]}  Ka7 {[%clk 0:00:09]} 43. gxf5 {[%clk 0:01:17]}  gxf5 {[%clk 0:00:09]} 44. Rxf5 {[%clk 0:01:18]}  Ka6 {[%clk 0:00:10]} 45. Rb5 {[%clk 0:01:19]}  Ka7 {[%clk 0:00:10]} 46. f5 {[%clk 0:01:19]}  Ka6 {[%clk 0:00:11]} 47. f6 {[%clk 0:01:20]}  Ka7 {[%clk 0:00:12]} 48. f7 {[%clk 0:01:21]}  Ka6 {[%clk 0:00:13]} 49. f8=Q {[%clk 0:01:22]}  Ka7 {[%clk 0:00:14]} 50. Qd6 {[%clk 0:01:22]}  Ka6 {[%clk 0:00:14]} 51. Qxb6# {[%clk 0:01:22]} 1-0


[Site "https://www.chess.com"]

[Event "Titled Tuesday Blitz July 25 Early 2023"]
[White "Cooper, Aaron"]
[Black "Guerra Tulcan, Lenin"]
[WhiteFideId "2634945"]
[BlackFideId "3601382"]
[WhiteElo "2293"]
[BlackElo "2576"]
[Result "0-1"]
[Round "8"]
[TimeControl "180+2"]
[Date "2023.07.25"]
[WhiteClock "0:00:00"]
[BlackClock "0:00:06"]
[Board "165"]

1. b4 {[%clk 0:03:00]}  e5 {[%clk 0:02:59]} 2. Bb2 {[%clk 0:02:59]}  d6 {[%clk 0:02:58]} 3. e3 {[%clk 0:02:58]}  Nf6 {[%clk 0:02:59]} 4. c4 {[%clk 0:02:58]}  Nbd7 {[%clk 0:02:59]} 5. Nf3 {[%clk 0:02:55]}  Be7 {[%clk 0:03:00]} 6. d4 {[%clk 0:02:54]}  a5 {[%clk 0:03:00]} 7. b5 {[%clk 0:02:53]}  e4 {[%clk 0:03:00]} 8. Nfd2 {[%clk 0:02:51]}  b6 {[%clk 0:03:00]} 9. Nc3 {[%clk 0:02:49]}  Bb7 {[%clk 0:03:00]} 10. Qc2 {[%clk 0:02:47]}  d5 {[%clk 0:02:54]} 11. cxd5 {[%clk 0:02:44]}  Nxd5 {[%clk 0:02:53]} 12. Ndxe4 {[%clk 0:02:30]}  Nb4 {[%clk 0:02:51]} 13. Qd1 {[%clk 0:02:28]}  O-O {[%clk 0:02:50]} 14. a3 {[%clk 0:02:25]}  Nd5 {[%clk 0:02:50]} 15. Bd3 {[%clk 0:02:22]}  N7f6 {[%clk 0:02:49]} 16. Nxf6+ {[%clk 0:02:12]}  Bxf6 {[%clk 0:02:49]} 17. Ne4 {[%clk 0:02:09]}  Re8 {[%clk 0:02:46]} 18. Nxf6+ {[%clk 0:01:58]}  Nxf6 {[%clk 0:02:34]} 19. O-O {[%clk 0:01:57]}  Qd5 {[%clk 0:02:34]} 20. f3 {[%clk 0:01:35]}  Rxe3 {[%clk 0:02:32]} 21. Qc2 {[%clk 0:01:35]}  Rae8 {[%clk 0:02:27]} 22. Bc4 {[%clk 0:01:25]}  Qh5 {[%clk 0:02:19]} 23. d5 {[%clk 0:01:17]}  Nxd5 {[%clk 0:02:07]} 24. Bd4 {[%clk 0:01:10]}  R3e7 {[%clk 0:02:00]} 25. Bxd5 {[%clk 0:01:07]}  Bxd5 {[%clk 0:01:59]} 26. Qc3 {[%clk 0:01:00]}  Qg6 {[%clk 0:01:52]} 27. Rad1 {[%clk 0:00:57]}  Be6 {[%clk 0:01:24]} 28. Rf2 {[%clk 0:00:38]}  h5 {[%clk 0:01:24]} 29. Rfd2 {[%clk 0:00:34]}  Rd7 {[%clk 0:01:19]} 30. Bf2 {[%clk 0:00:33]}  Rxd2 {[%clk 0:01:07]} 31. Qxd2 {[%clk 0:00:33]}  Bc4 {[%clk 0:01:03]} 32. Rc1 {[%clk 0:00:23]}  Bxb5 {[%clk 0:00:52]} 33. Rxc7 {[%clk 0:00:23]}  Re2 {[%clk 0:00:49]} 34. Qd8+ {[%clk 0:00:22]}  Kh7 {[%clk 0:00:49]} 35. Rc1 {[%clk 0:00:14]}  Rc2 {[%clk 0:00:37]} 36. Re1 {[%clk 0:00:13]}  Rc6 {[%clk 0:00:33]} 37. h4 {[%clk 0:00:12]}  Rd6 {[%clk 0:00:19]} 38. Qf8 {[%clk 0:00:11]}  Bc4 {[%clk 0:00:16]} 39. Re8 {[%clk 0:00:09]}  Qb1+ {[%clk 0:00:16]} 40. Kh2 {[%clk 0:00:09]}  Rd1 {[%clk 0:00:14]} 41. Qh8+ {[%clk 0:00:07]}  Kg6 {[%clk 0:00:14]} 42. g4 {[%clk 0:00:04]}  Rh1+ {[%clk 0:00:14]} 43. Kg3 {[%clk 0:00:04]}  Rg1+ {[%clk 0:00:14]} 44. Bxg1 {[%clk 0:00:04]}  Qxg1+ {[%clk 0:00:15]} 45. Kf4 {[%clk 0:00:05]}  Qc1+ {[%clk 0:00:15]} 46. Re3 {[%clk 0:00:04]}  hxg4 {[%clk 0:00:13]} 47. fxg4 {[%clk 0:00:04]}  Qf1+ {[%clk 0:00:06]} 48. Rf3 {[%clk 0:00:05]}  Qc1+ {[%clk 0:00:06]} 49. Re3 {[%clk 0:00:05]}  Qf1+ {[%clk 0:00:06]} 50. Kg3 {[%clk 0:00:04]}  Qg1+ {[%clk 0:00:06]} 51. Kf3 {[%clk 0:00:05]}  Bd5+ {[%clk 0:00:05]} 52. Kf4 {[%clk 0:00:04]}  Qf2+ {[%clk 0:00:06]} 53. Ke5 {[%clk 0:00:02]}  Qxe3+ {[%clk 0:00:06]} 54. Kd6 {[%clk 0:00:03]}  Qe6+ {[%clk 0:00:06]} 55. Kc7 {[%clk 0:00:03]}  Qc6+ {[%clk 0:00:06]} 56. Kd8 {[%clk 0:00:04]}  Qa8+ {[%clk 0:00:06]} 57. Ke7 {[%clk 0:00:00]}  Qxh8 {[%clk 0:00:06]} 0-1


[Site "https://www.chess.com"]

[Event "Titled Tuesday Blitz July 25 Early 2023"]
[White "Zaksaite, Salomeja"]
[Black "Rodchenkov, Sergey D."]
[WhiteFideId "12801496"]
[BlackFideId "4168712"]
[WhiteElo "2282"]
[BlackElo "2534"]
[Result "1-0"]
[Round "8"]
[TimeControl "180+2"]
[Date "2023.07.25"]
[WhiteClock "0:00:14"]
[BlackClock "0:01:15"]
[Board "166"]

1. e4 {[%clk 0:03:00]}  c5 {[%clk 0:03:00]} 2. Nf3 {[%clk 0:02:59]}  d6 {[%clk 0:03:00]} 3. d4 {[%clk 0:02:59]}  cxd4 {[%clk 0:03:01]} 4. Nxd4 {[%clk 0:03:00]}  Nf6 {[%clk 0:03:02]} 5. Nc3 {[%clk 0:03:01]}  a6 {[%clk 0:03:02]} 6. Bc4 {[%clk 0:02:59]}  e6 {[%clk 0:03:01]} 7. Bb3 {[%clk 0:02:59]}  b5 {[%clk 0:02:53]} 8. O-O {[%clk 0:02:58]}  Qc7 {[%clk 0:02:54]} 9. Re1 {[%clk 0:02:57]}  Be7 {[%clk 0:02:52]} 10. f4 {[%clk 0:02:52]}  O-O {[%clk 0:02:49]} 11. e5 {[%clk 0:02:51]}  Nfd7 {[%clk 0:02:45]} 12. Nxe6 {[%clk 0:02:34]}  fxe6 {[%clk 0:02:42]} 13. Bxe6+ {[%clk 0:02:34]}  Kh8 {[%clk 0:02:42]} 14. Nd5 {[%clk 0:02:34]}  Qd8 {[%clk 0:02:39]} 15. Nxe7 {[%clk 0:02:13]}  Qxe7 {[%clk 0:02:36]} 16. exd6 {[%clk 0:02:13]}  Qh4 {[%clk 0:02:27]} 17. Bd5 {[%clk 0:02:06]}  Nb6 {[%clk 0:02:14]} 18. Bxa8 {[%clk 0:02:05]}  Nxa8 {[%clk 0:02:15]} 19. Be3 {[%clk 0:02:00]}  Bb7 {[%clk 0:02:11]} 20. Bd4 {[%clk 0:01:52]}  Nd7 {[%clk 0:02:03]} 21. Re7 {[%clk 0:01:50]}  Nab6 {[%clk 0:01:50]} 22. Rxg7 {[%clk 0:01:43]}  Rf6 {[%clk 0:01:49]} 23. Rg4 {[%clk 0:01:14]}  Qh6 {[%clk 0:01:40]} 24. Bxb6 {[%clk 0:00:58]}  Rxd6 {[%clk 0:01:31]} 25. Bd4+ {[%clk 0:00:51]}  Nf6 {[%clk 0:01:31]} 26. c3 {[%clk 0:00:39]}  Qf8 {[%clk 0:01:28]} 27. Qe2 {[%clk 0:00:30]}  h6 {[%clk 0:01:13]} 28. Rg6 {[%clk 0:00:28]}  Kh7 {[%clk 0:01:12]} 29. Rxf6 {[%clk 0:00:19]}  Rxf6 {[%clk 0:01:12]} 30. Bxf6 {[%clk 0:00:19]}  Qxf6 {[%clk 0:01:13]} 31. Re1 {[%clk 0:00:17]}  Qb6+ {[%clk 0:01:14]} 32. Qe3 {[%clk 0:00:17]}  Qc6 {[%clk 0:01:15]} 33. Qe7+ {[%clk 0:00:15]}  Kg8 {[%clk 0:01:15]} 34. Qe8+ {[%clk 0:00:15]}  Kg7 {[%clk 0:01:14]} 35. Qxc6 {[%clk 0:00:14]}  Bxc6 {[%clk 0:01:15]} 36. Re6 {[%clk 0:00:14]}  Bd5 {[%clk 0:01:15]} 37. Rxa6 {[%clk 0:00:14]} 1-0


[Site "https://www.chess.com"]

[Event "Titled Tuesday Blitz July 25 Early 2023"]
[White "AndresDelgado77"]
[Black "Goffredo_Fofi"]
[WhiteElo "2281"]
[BlackElo "2497"]
[Result "1-0"]
[Round "8"]
[TimeControl "180+2"]
[Date "2023.07.25"]
[WhiteClock "0:00:28"]
[BlackClock "0:00:16"]
[Board "167"]

1. e4 {[%clk 0:03:00]}  g6 {[%clk 0:03:00]} 2. d4 {[%clk 0:02:59]}  Bg7 {[%clk 0:03:00]} 3. Nf3 {[%clk 0:02:57]}  c6 {[%clk 0:03:00]} 4. Nc3 {[%clk 0:02:56]}  d5 {[%clk 0:03:00]} 5. h3 {[%clk 0:02:55]}  dxe4 {[%clk 0:03:00]} 6. Nxe4 {[%clk 0:02:54]}  Nf6 {[%clk 0:03:01]} 7. Nxf6+ {[%clk 0:02:51]}  exf6 {[%clk 0:03:02]} 8. Bc4 {[%clk 0:02:25]}  O-O {[%clk 0:03:01]} 9. O-O {[%clk 0:02:25]}  a5 {[%clk 0:03:02]} 10. a4 {[%clk 0:02:24]}  Na6 {[%clk 0:03:02]} 11. Re1 {[%clk 0:02:22]}  Nc7 {[%clk 0:03:02]} 12. Bf4 {[%clk 0:02:16]}  Nd5 {[%clk 0:03:01]} 13. Bg3 {[%clk 0:02:12]}  Be6 {[%clk 0:02:51]} 14. Bb3 {[%clk 0:02:05]}  Qd7 {[%clk 0:02:51]} 15. c4 {[%clk 0:02:03]}  Nb6 {[%clk 0:02:48]} 16. Rc1 {[%clk 0:01:59]}  Rfd8 {[%clk 0:02:43]} 17. Qd2 {[%clk 0:01:54]}  f5 {[%clk 0:02:15]} 18. Qf4 {[%clk 0:01:48]}  Rac8 {[%clk 0:02:02]} 19. Red1 {[%clk 0:01:44]}  f6 {[%clk 0:01:58]} 20. h4 {[%clk 0:01:28]}  Bf8 {[%clk 0:01:57]} 21. Qe3 {[%clk 0:01:16]}  Bf7 {[%clk 0:01:34]} 22. d5 {[%clk 0:01:11]}  c5 {[%clk 0:01:34]} 23. Qc3 {[%clk 0:01:08]}  Nxa4 {[%clk 0:01:18]} 24. Qxa5 {[%clk 0:00:52]}  Ra8 {[%clk 0:01:06]} 25. Qd2 {[%clk 0:00:51]}  b5 {[%clk 0:00:59]} 26. Bxa4 {[%clk 0:00:40]}  Rxa4 {[%clk 0:00:52]} 27. b3 {[%clk 0:00:37]}  Ra3 {[%clk 0:00:48]} 28. Qb2 {[%clk 0:00:36]}  Rda8 {[%clk 0:00:35]} 29. Qxf6 {[%clk 0:00:34]}  Rxb3 {[%clk 0:00:27]} 30. Be5 {[%clk 0:00:32]}  Be8 {[%clk 0:00:15]} 31. Qh8+ {[%clk 0:00:29]}  Kf7 {[%clk 0:00:16]} 32. Ng5+ {[%clk 0:00:28]}  Ke7 {[%clk 0:00:16]} 33. Qf6# {[%clk 0:00:28]} 1-0


[Site "https://www.chess.com"]

[Event "Titled Tuesday Blitz July 25 Early 2023"]
[White "Orlov, Oleg"]
[Black "Barwinska, Ewa"]
[WhiteFideId "4166612"]
[BlackFideId "21833761"]
[WhiteElo "2476"]
[BlackElo "2274"]
[Result "0-1"]
[Round "8"]
[TimeControl "180+2"]
[Date "2023.07.25"]
[WhiteClock "0:00:00"]
[BlackClock "0:00:59"]
[Board "168"]

1. e4 {[%clk 0:02:53]}  c5 {[%clk 0:02:58]} 2. Nf3 {[%clk 0:02:51]}  Nc6 {[%clk 0:02:58]} 3. Bb5 {[%clk 0:02:45]}  g6 {[%clk 0:02:56]} 4. c3 {[%clk 0:02:38]}  Bg7 {[%clk 0:02:51]} 5. O-O {[%clk 0:02:30]}  e5 {[%clk 0:02:41]} 6. d4 {[%clk 0:02:08]}  cxd4 {[%clk 0:02:20]} 7. cxd4 {[%clk 0:02:06]}  Nxd4 {[%clk 0:02:12]} 8. Nxd4 {[%clk 0:02:04]}  exd4 {[%clk 0:02:12]} 9. Nd2 {[%clk 0:02:03]}  Ne7 {[%clk 0:02:08]} 10. Nc4 {[%clk 0:01:56]}  O-O {[%clk 0:02:04]} 11. Nd6 {[%clk 0:01:45]}  Qb6 {[%clk 0:02:03]} 12. Bf4 {[%clk 0:01:26]}  Nc6 {[%clk 0:01:57]} 13. Bg3 {[%clk 0:01:03]}  a6 {[%clk 0:01:56]} 14. Bd3 {[%clk 0:00:59]}  Ne5 {[%clk 0:01:55]} 15. Bxe5 {[%clk 0:00:56]}  Bxe5 {[%clk 0:01:54]} 16. Nc4 {[%clk 0:00:56]}  Qe6 {[%clk 0:01:47]} 17. f4 {[%clk 0:00:54]}  Bg7 {[%clk 0:01:45]} 18. f5 {[%clk 0:00:55]}  Qe7 {[%clk 0:01:37]} 19. f6 {[%clk 0:00:52]}  Bxf6 {[%clk 0:01:35]} 20. Nb6 {[%clk 0:00:00]}  Be5 {[%clk 0:00:59]} 0-1


[Site "https://www.chess.com"]

[Event "Titled Tuesday Blitz July 25 Early 2023"]
[White "Chemin, Justo Reinaldo"]
[Black "UNSTOPPABLE_LEGEND"]
[WhiteFideId "2101580"]
[WhiteElo "2263"]
[BlackElo "2450"]
[Result "0-1"]
[Round "8"]
[TimeControl "180+2"]
[Date "2023.07.25"]
[WhiteClock "0:00:00"]
[BlackClock "0:00:58"]
[Board "170"]

1. d4 {[%clk 0:02:36]}  d6 {[%clk 0:02:56]} 2. e4 {[%clk 0:02:34]}  Nf6 {[%clk 0:02:56]} 3. Nc3 {[%clk 0:02:33]}  e5 {[%clk 0:02:56]} 4. Nf3 {[%clk 0:02:31]}  Nbd7 {[%clk 0:02:56]} 5. Bc4 {[%clk 0:02:31]}  Be7 {[%clk 0:02:56]} 6. O-O {[%clk 0:02:19]}  O-O {[%clk 0:02:55]} 7. Re1 {[%clk 0:02:15]}  c6 {[%clk 0:02:55]} 8. Bb3 {[%clk 0:02:13]}  exd4 {[%clk 0:02:33]} 9. Nxd4 {[%clk 0:02:09]}  a5 {[%clk 0:02:29]} 10. Nf5 {[%clk 0:02:07]}  Nc5 {[%clk 0:02:28]} 11. a4 {[%clk 0:01:43]}  Nxb3 {[%clk 0:02:26]} 12. Nxe7+ {[%clk 0:01:41]}  Qxe7 {[%clk 0:02:24]} 13. cxb3 {[%clk 0:01:42]}  Be6 {[%clk 0:02:19]} 14. Bf4 {[%clk 0:01:41]}  Rad8 {[%clk 0:02:18]} 15. f3 {[%clk 0:01:30]}  d5 {[%clk 0:01:58]} 16. Qc2 {[%clk 0:01:21]}  d4 {[%clk 0:01:55]} 17. Nd1 {[%clk 0:01:13]}  Qb4 {[%clk 0:01:54]} 18. Nf2 {[%clk 0:01:07]}  Bxb3 {[%clk 0:01:52]} 19. Qd2 {[%clk 0:01:00]}  Qxd2 {[%clk 0:01:50]} 20. Bxd2 {[%clk 0:01:01]}  b6 {[%clk 0:01:50]} 21. f4 {[%clk 0:00:50]}  c5 {[%clk 0:01:49]} 22. e5 {[%clk 0:00:47]}  Nd5 {[%clk 0:01:48]} 23. Ne4 {[%clk 0:00:48]}  Nb4 {[%clk 0:01:45]} 24. Bxb4 {[%clk 0:00:40]}  axb4 {[%clk 0:01:46]} 25. Nd6 {[%clk 0:00:40]}  Ra8 {[%clk 0:01:37]} 26. f5 {[%clk 0:00:40]}  Rfd8 {[%clk 0:01:30]} 27. a5 {[%clk 0:00:25]}  bxa5 {[%clk 0:01:24]} 28. Nb7 {[%clk 0:00:25]}  Rdc8 {[%clk 0:01:19]} 29. Nxa5 {[%clk 0:00:25]}  Bd5 {[%clk 0:01:16]} 30. e6 {[%clk 0:00:25]}  fxe6 {[%clk 0:01:14]} 31. fxe6 {[%clk 0:00:25]}  c4 {[%clk 0:01:12]} 32. e7 {[%clk 0:00:23]}  c3 {[%clk 0:01:11]} 33. bxc3 {[%clk 0:00:22]}  dxc3 {[%clk 0:01:12]} 34. Red1 {[%clk 0:00:12]}  c2 {[%clk 0:01:11]} 35. Rxd5 {[%clk 0:00:11]}  c1=Q+ {[%clk 0:01:11]} 36. Rxc1 {[%clk 0:00:12]}  Rxc1+ {[%clk 0:01:11]} 37. Kf2 {[%clk 0:00:13]}  Rcc8 {[%clk 0:01:04]} 38. Nc6 {[%clk 0:00:09]}  Re8 {[%clk 0:01:02]} 39. Nxb4 {[%clk 0:00:04]}  Rxe7 {[%clk 0:00:59]} 40. Nd3 {[%clk 0:00:00]}  Rf8+ {[%clk 0:00:58]} 0-1


[Site "https://www.chess.com"]

[Event "Titled Tuesday Blitz July 25 Early 2023"]
[White "Rian, Kapriaga"]
[Black "Joshi, Pankaj"]
[WhiteFideId "7103263"]
[BlackFideId "5006210"]
[WhiteElo "2382"]
[BlackElo "2234"]
[Result "0-1"]
[Round "8"]
[TimeControl "180+2"]
[Date "2023.07.25"]
[WhiteClock "0:00:28"]
[BlackClock "0:00:46"]
[Board "174"]

1. d4 {[%clk 0:03:00]}  Nf6 {[%clk 0:02:59]} 2. Nf3 {[%clk 0:03:01]}  g6 {[%clk 0:02:59]} 3. c4 {[%clk 0:02:59]}  Bg7 {[%clk 0:03:00]} 4. Nc3 {[%clk 0:03:00]}  O-O {[%clk 0:03:00]} 5. Bg5 {[%clk 0:02:58]}  c5 {[%clk 0:02:57]} 6. e3 {[%clk 0:02:58]}  a6 {[%clk 0:02:53]} 7. Be2 {[%clk 0:02:57]}  cxd4 {[%clk 0:02:44]} 8. exd4 {[%clk 0:02:56]}  d5 {[%clk 0:02:41]} 9. Bxf6 {[%clk 0:02:55]}  Bxf6 {[%clk 0:02:37]} 10. Nxd5 {[%clk 0:02:55]}  Bg7 {[%clk 0:02:34]} 11. Nc3 {[%clk 0:02:51]}  Nc6 {[%clk 0:02:23]} 12. d5 {[%clk 0:02:47]}  Ne5 {[%clk 0:02:22]} 13. O-O {[%clk 0:02:45]}  e6 {[%clk 0:02:21]} 14. d6 {[%clk 0:02:39]}  Bd7 {[%clk 0:02:12]} 15. c5 {[%clk 0:02:38]}  Bc6 {[%clk 0:02:10]} 16. Nxe5 {[%clk 0:02:36]}  Bxe5 {[%clk 0:02:11]} 17. Bf3 {[%clk 0:02:36]}  Rc8 {[%clk 0:02:08]} 18. Na4 {[%clk 0:02:19]}  Bxa4 {[%clk 0:01:53]} 19. Qxa4 {[%clk 0:02:17]}  Rxc5 {[%clk 0:01:53]} 20. Bxb7 {[%clk 0:02:13]}  Bxd6 {[%clk 0:01:47]} 21. Bxa6 {[%clk 0:02:04]}  Qc7 {[%clk 0:01:41]} 22. g3 {[%clk 0:02:02]}  Ra8 {[%clk 0:01:37]} 23. b4 {[%clk 0:02:00]}  Rc6 {[%clk 0:01:35]} 24. b5 {[%clk 0:01:58]}  Rc4 {[%clk 0:01:35]} 25. Qb3 {[%clk 0:01:52]}  Rb4 {[%clk 0:01:28]} 26. Qd3 {[%clk 0:01:47]}  Qb6 {[%clk 0:01:25]} 27. a4 {[%clk 0:01:44]}  Rd8 {[%clk 0:01:18]} 28. Rfd1 {[%clk 0:01:41]}  Be7 {[%clk 0:01:16]} 29. Qe2 {[%clk 0:01:36]}  Bf6 {[%clk 0:01:09]} 30. a5 {[%clk 0:01:32]}  Rxd1+ {[%clk 0:01:02]} 31. Qxd1 {[%clk 0:01:28]}  Qc5 {[%clk 0:01:01]} 32. Rc1 {[%clk 0:01:22]}  Qf5 {[%clk 0:01:01]} 33. Qc2 {[%clk 0:01:12]}  Qf3 {[%clk 0:00:57]} 34. Qc8+ {[%clk 0:01:07]}  Kg7 {[%clk 0:00:56]} 35. Bb7 {[%clk 0:01:07]}  Qa3 {[%clk 0:00:54]} 36. Bc6 {[%clk 0:00:47]}  Qxc1+ {[%clk 0:00:53]} 37. Kg2 {[%clk 0:00:44]}  Rb1 {[%clk 0:00:51]} 38. a6 {[%clk 0:00:36]}  Bd4 {[%clk 0:00:48]} 39. Qd7 {[%clk 0:00:29]}  Qf1+ {[%clk 0:00:47]} 40. Kf3 {[%clk 0:00:28]}  Qxf2+ {[%clk 0:00:48]} 41. Kg4 {[%clk 0:00:28]}  Qf5+ {[%clk 0:00:47]} 42. Kh4 {[%clk 0:00:28]}  Qh5# {[%clk 0:00:46]} 0-1


[Site "https://www.chess.com"]

[Event "Titled Tuesday Blitz July 25 Early 2023"]
[White "Ramirez Vido, Robert Yorisan"]
[Black "Kuchava, Ana"]
[WhiteFideId "3513823"]
[BlackFideId "13605348"]
[WhiteElo "2379"]
[BlackElo "2220"]
[Result "1-0"]
[Round "8"]
[TimeControl "180+2"]
[Date "2023.07.25"]
[WhiteClock "0:00:14"]
[BlackClock "0:00:00"]
[Board "175"]

1. f4 {[%clk 0:03:00]}  d5 {[%clk 0:02:56]} 2. Nf3 {[%clk 0:02:59]}  c5 {[%clk 0:02:52]} 3. g3 {[%clk 0:02:58]}  Nc6 {[%clk 0:02:50]} 4. Bg2 {[%clk 0:02:53]}  Nf6 {[%clk 0:02:45]} 5. d3 {[%clk 0:02:54]}  Qc7 {[%clk 0:02:37]} 6. O-O {[%clk 0:02:53]}  Bg4 {[%clk 0:02:29]} 7. h3 {[%clk 0:02:46]}  Bxf3 {[%clk 0:02:28]} 8. Bxf3 {[%clk 0:02:45]}  e5 {[%clk 0:02:26]} 9. fxe5 {[%clk 0:02:41]}  Nxe5 {[%clk 0:02:27]} 10. Bg2 {[%clk 0:02:41]}  h6 {[%clk 0:02:09]} 11. Nc3 {[%clk 0:02:39]}  d4 {[%clk 0:01:50]} 12. Nb5 {[%clk 0:02:32]}  Qb6 {[%clk 0:01:22]} 13. Bf4 {[%clk 0:02:24]}  Qxb5 {[%clk 0:01:15]} 14. Bxe5 {[%clk 0:02:24]}  Be7 {[%clk 0:01:15]} 15. c4 {[%clk 0:02:11]}  Qd7 {[%clk 0:01:08]} 16. Qb3 {[%clk 0:02:05]}  O-O {[%clk 0:00:57]} 17. Qxb7 {[%clk 0:02:03]}  Qxb7 {[%clk 0:00:49]} 18. Bxb7 {[%clk 0:02:04]}  Rad8 {[%clk 0:00:48]} 19. Bg2 {[%clk 0:01:52]}  Nd7 {[%clk 0:00:30]} 20. Bc7 {[%clk 0:01:48]}  Rc8 {[%clk 0:00:30]} 21. Bf4 {[%clk 0:01:49]}  g5 {[%clk 0:00:29]} 22. Bd2 {[%clk 0:01:48]}  Bd6 {[%clk 0:00:30]} 23. g4 {[%clk 0:01:32]}  Rb8 {[%clk 0:00:29]} 24. b3 {[%clk 0:01:32]}  Rfe8 {[%clk 0:00:26]} 25. Bc6 {[%clk 0:01:29]}  Re7 {[%clk 0:00:25]} 26. Rf2 {[%clk 0:01:05]}  Be5 {[%clk 0:00:17]} 27. Kg2 {[%clk 0:01:00]}  f6 {[%clk 0:00:17]} 28. Raf1 {[%clk 0:00:57]}  Kg7 {[%clk 0:00:17]} 29. h4 {[%clk 0:00:42]}  Nf8 {[%clk 0:00:16]} 30. hxg5 {[%clk 0:00:41]}  hxg5 {[%clk 0:00:16]} 31. Bd5 {[%clk 0:00:33]}  Ng6 {[%clk 0:00:16]} 32. Rh1 {[%clk 0:00:25]}  Rh8 {[%clk 0:00:08]} 33. Rxh8 {[%clk 0:00:23]}  Kxh8 {[%clk 0:00:09]} 34. Kf3 {[%clk 0:00:22]}  Nf4 {[%clk 0:00:09]} 35. Rf1 {[%clk 0:00:21]}  Nxd5 {[%clk 0:00:07]} 36. cxd5 {[%clk 0:00:21]}  Rd7 {[%clk 0:00:08]} 37. Ke4 {[%clk 0:00:21]}  Kg7 {[%clk 0:00:08]} 38. Rc1 {[%clk 0:00:20]}  Bd6 {[%clk 0:00:07]} 39. e3 {[%clk 0:00:15]}  Re7+ {[%clk 0:00:07]} 40. Kf3 {[%clk 0:00:16]}  Re5 {[%clk 0:00:03]} 41. e4 {[%clk 0:00:15]}  Re7 {[%clk 0:00:02]} 42. Rc2 {[%clk 0:00:15]}  Rc7 {[%clk 0:00:02]} 43. Bc1 {[%clk 0:00:15]}  Kf7 {[%clk 0:00:03]} 44. Bb2 {[%clk 0:00:15]}  a5 {[%clk 0:00:03]} 45. Ba3 {[%clk 0:00:15]}  Ke7 {[%clk 0:00:04]} 46. Rc1 {[%clk 0:00:13]}  Rc8 {[%clk 0:00:04]} 47. Rh1 {[%clk 0:00:14]}  Ra8 {[%clk 0:00:00]} 48. Rh7+ {[%clk 0:00:14]} 1-0


[Site "https://www.chess.com"]